[Event "European Online Club-ch-E 2021"]
[Site "Online"]
[Date "2021.03.27"]
[Round "7.16"]
[White "Safarli, Eltaj"]
[Black "Tarlabasi, Emirhan"]
[Result "1-0"]
[ECO "C07"]
[WhiteElo "2598"]
[BlackElo "2301"]
[Annotator "ChessBase"]
[PlyCount "87"]
[EventDate "2021.03.27"]
[EventType "team-tourn"]
[EventCountry "NET"]
[SourceTitle "playchess.com"]
[Source "ChessBase"]
[SourceQuality "1"]
[TimeControl "900+5"]

1. e4 {[%emt 0:00:00]} e6 {[%emt 0:00:03]} 2. d4 {[%emt 0:00:03]} d5 {[%emt 0:00:01]} 3. Nd2 {[%emt 0:00:03]} a6 {[%emt 0:00:24]} 4. Ngf3 {[%emt 0:00:06]} c5 {[%emt 0:00:02]} 5. c3 {[%emt 0:00:07]} Nc6 {[%emt 0:00:35]} 6. Bd3 {[%emt 0:00:04]} Nf6 {[%emt 0:00:36]} 7. O-O {[%emt 0:00:05]} cxd4 {[%emt 0:02:19]} 8. cxd4 {[%emt 0:00:03]} Be7 {[%emt 0:00:18]} 9. Re1 {[%emt 0:00:19]} O-O {[%emt 0:01:25]} 10. e5 {[%emt 0:00:04]} Nd7 {[%emt 0:00:06]} 11. Nf1 {[%emt 0:00:03]} Re8 {[%emt 0:03:36]} 12. Ng3 {[%emt 0:00:21]} f5 {[%emt 0:00:27]} 13. exf6 {[%emt 0:00:13]} Bxf6 {[%emt 0:00:03]} 14. Nh5 {[%emt 0:00:54]} Nf8 {[%emt 0:01:45]} 15. Nxf6+ {[%emt 0:01:07]} Qxf6 {[%emt 0:00:24]} 16. Bg5 {[%emt 0:00:51]} Qf7 {[%emt 0:00:03]} 17. Qd2 {[%emt 0:00:36]} Bd7 {[%emt 0:00:22]} 18. Bf4 {[%emt 0:00:56]} Ng6 {[%emt 0:01:00]} 19. Bg3 {[%emt 0:00:31]} Rac8 {[%emt 0:00:15]} 20. Rac1 {[%emt 0:01:39]} Qf6 {[%emt 0:00:11]} 21. Bb1 {[%emt 0:00:39]} Nce7 {[%emt 0:01:48]} 22. h4 {[%emt 0:00:23]} Nf5 {[%emt 0:00:31]} 23. h5 {[%emt 0:00:22]} Nge7 {[%emt 0:00:17]} 24. Ne5 {[%emt 0:00:45]} Rxc1 {[%emt 0:00:09]} 25. Rxc1 {[%emt 0:00:10]} Bc6 {[%emt 0:00:07]} 26. Bf4 {[%emt 0:01:06]} h6 {[%emt 0:00:09]} 27. g4 {[%emt 0:00:12]} Nh4 {[%emt 0:00:01]} 28. Rc3 {[%emt 0:00:08]} Rf8 {[%emt 0:00:10]} 29. Bg3 {[%emt 0:00:02]} g5 {[%emt 0:00:10]} 30. hxg6 {[%emt 0:00:05]} Nhxg6 {[%emt 0:00:02]} 31. Qxh6 {[%emt 0:00:04]} Qg7 {[%emt 0:00:03]} 32. Qxg7+ {[%emt 0:00:20]} Kxg7 {[%emt 0:00:01]} 33. Bxg6 {[%emt 0:00:02]} Nxg6 {[%emt 0:00:01]} 34. Nxc6 {[%emt 0:00:01]} bxc6 {[%emt 0:00:02]} 35. Rxc6 {[%emt 0:00:01]} Nf4 {[%emt 0:00:08]} 36. Kf1 {[%emt 0:00:03]} a5 {[%emt 0:00:06]} 37. Ra6 {[%emt 0:00:18]} Nd3 {[%emt 0:00:02]} 38. Rxe6 {[%emt 0:00:03]} Nxb2 {[%emt 0:00:03]} 39. Rd6 {[%emt 0:00:33]} Nc4 {[%emt 0:00:02]} 40. Rd7+ {[%emt 0:00:02]} Kg6 {[%emt 0:00:01]} 41. Kg2 {[%emt 0:00:12]} Re8 {[%emt 0:00:09]} 42. Rxd5 {[%emt 0:00:15]} Re2 {[%emt 0:00:01]} 43. Rc5 {[%emt 0:00:01]} Na3 {[%emt 0:00:22]} 44. Rxa5 {[%emt 0:00:07]} 1-0

[Event "European Online Club-ch-E 2021"]
[Site "Online"]
[Date "2021.03.27"]
[Round "7.17"]
[White "Pavlidis, Antonios"]
[Black "Ozturk Orenli, Kubra"]
[Result "0-1"]
[ECO "C26"]
[WhiteElo "2536"]
[BlackElo "2330"]
[Annotator "ChessBase"]
[PlyCount "56"]
[EventDate "2021.03.27"]
[EventType "team-tourn"]
[EventCountry "NET"]
[SourceTitle "playchess.com"]
[Source "ChessBase"]
[SourceQuality "1"]
[TimeControl "900+5"]

1. e4 {[%emt 0:00:00]} e5 {[%emt 0:00:03]} 2. Nc3 {[%emt 0:00:03]} Nf6 {[%emt 0:00:06]} 3. d4 {[%emt 0:00:02]} exd4 {[%emt 0:01:47]} 4. Qxd4 {[%emt 0:00:03]} Nc6 {[%emt 0:00:04]} 5. Qd3 {[%emt 0:00:01]} Bb4 {[%emt 0:00:26]} 6. Bd2 {[%emt 0:00:03]} O-O {[%emt 0:00:09]} 7. O-O-O {[%emt 0:00:03]} Re8 {[%emt 0:00:31]} 8. Nge2 {[%emt 0:00:03]} d6 {[%emt 0:00:49]} 9. h3 {[%emt 0:00:05]} Ne5 {[%emt 0:00:27]} 10. Qg3 {[%emt 0:00:04]} Nh5 {[%emt 0:02:30]} 11. Qh2 {[%emt 0:00:03]} Nc4 {[%emt 0:00:08]} 12. Be1 {[%emt 0:00:03]} Qg5+ {[%emt 0:02:18]} 13. Kb1 {[%emt 0:00:29]} Qa5 {[%emt 0:01:16]} 14. Rd5 {[%emt 0:02:00]} c5 {[%emt 0:00:40]} 15. Rxh5 {[%emt 0:00:37]} Be6 {[%emt 0:00:58]} 16. Qg3 {[%emt 0:03:38]} Nxb2 {[%emt 0:00:09]} 17. Nc1 {[%emt 0:02:17]} Na4 {[%emt 0:00:36]} 18. Nxa4 {[%emt 0:00:26]} Bxe1 {[%emt 0:01:12]} 19. Nb2 {[%emt 0:00:03]} b5 {[%emt 0:01:15]} 20. Nb3 {[%emt 0:01:33]} Bxb3 {[%emt 0:00:23]} 21. cxb3 {[%emt 0:00:03]} Bc3 {[%emt 0:00:30]} 22. Be2 {[%emt 0:00:39]} Bxb2 {[%emt 0:00:07]} 23. Kxb2 {[%emt 0:02:54]} Qd2+ {[%emt 0:00:03]} 24. Ka1 {[%emt 0:00:01]} Qxe2 {[%emt 0:00:02]} 25. Rg5 {[%emt 0:00:02]} g6 {[%emt 0:00:02]} 26. h4 {[%emt 0:00:01]} Qxe4 {[%emt 0:00:06]} 27. h5 {[%emt 0:00:02]} Qd4+ {[%emt 0:00:02]} 28. Kb1 {[%emt 0:00:02]} Re2 {[%emt 0:00:05]} 0-1

[Event "European Online Club-ch-E 2021"]
[Site "Online"]
[Date "2021.03.27"]
[Round "7.18"]
[White "Caglar, Sila"]
[Black "Stefanou, Dimitrios"]
[Result "1-0"]
[ECO "C50"]
[WhiteElo "2250"]
[BlackElo "2099"]
[Annotator "NA"]
[PlyCount "97"]
[EventDate "2021.03.27"]
[EventType "team-tourn"]
[EventCountry "NET"]
[SourceTitle "playchess.com"]
[Source "ChessBase"]
[SourceQuality "1"]
[TimeControl "900+5"]

1. e4 {[%emt 0:00:00]} e5 {[%emt 0:00:03]} 2. Nf3 {[%emt 0:00:06]} Nc6 {[%emt 0:00:04]} 3. Bc4 {[%emt 0:00:05]} Bc5 {[%emt 0:00:03]} 4. O-O {[%emt 0:00:05]} Nf6 {[%emt 0:00:12]} 5. d3 {[%emt 0:00:09]} O-O {[%emt 0:00:04]} 6. Re1 {[%emt 0:00:16]} a6 {[%emt 0:03:00]} 7. c3 {[%emt 0:00:11]} d6 {[%emt 0:00:06]} 8. b4 {[%emt 0:00:28]} Ba7 {[%emt 0:00:06]} 9. a4 {[%emt 0:00:02]} Ne7 {[%emt 0:00:07]} 10. a5 {[%emt 0:00:33]} Ng6 {[%emt 0:00:10]} 11. Nbd2 {[%emt 0:00:31]} c6 {[%emt 0:00:15]} 12. Nf1 {[%emt 0:00:21]} d5 {[%emt 0:00:39]} 13. Bb3 {[%emt 0:00:47]} Re8 {[%emt 0:02:39]} 14. h3 {[%emt 0:01:41]} h6 {[%emt 0:00:10]} 15. Bd2 {[%emt 0:00:51]} Be6 {[%emt 0:02:33]} 16. Ng3 {[%emt 0:01:22]} Qd7 {[%emt 0:00:50]} 17. exd5 {[%emt 0:00:34]} Bxd5 {[%emt 0:00:21]} 18. Be3 {[%emt 0:00:44]} Bxe3 {[%emt 0:00:36]} 19. Rxe3 {[%emt 0:00:09]} Bxb3 {[%emt 0:00:08]} 20. Qxb3 {[%emt 0:00:04]} Nd5 {[%emt 0:00:12]} 21. Re4 {[%emt 0:00:08]} f5 {[%emt 0:00:30]} 22. Re2 {[%emt 0:00:10]} Kh7 {[%emt 0:00:22]} 23. Rd1 {[%emt 0:00:40]} Ndf4 {[%emt 0:00:11]} 24. Red2 {[%emt 0:00:07]} Rf8 {[%emt 0:00:41]} 25. d4 {[%emt 0:01:03]} e4 {[%emt 0:00:29]} 26. Ne5 {[%emt 0:00:06]} Qe8 {[%emt 0:00:37]} 27. Kh2 {[%emt 0:01:16]} Nxe5 {[%emt 0:00:14]} 28. dxe5 {[%emt 0:00:03]} Qxe5 {[%emt 0:00:17]} 29. Rd7 {[%emt 0:00:04]} Nd3 {[%emt 0:00:18]} 30. Qc4 {[%emt 0:00:49]} Nxf2 {[%emt 0:00:31]} 31. Qd4 {[%emt 0:00:09]} Qxd4 {[%emt 0:00:20]} 32. R1xd4 {[%emt 0:00:03]} Nd3 {[%emt 0:00:30]} 33. Rxb7 {[%emt 0:00:08]} Rad8 {[%emt 0:00:04]} 34. Rxd8 {[%emt 0:00:07]} Rxd8 {[%emt 0:00:01]} 35. Nxf5 {[%emt 0:00:02]} Ne5 {[%emt 0:00:17]} 36. Rxg7+ {[%emt 0:00:09]} Kh8 {[%emt 0:00:02]} 37. Re7 {[%emt 0:00:04]} Nc4 {[%emt 0:00:16]} 38. Nxh6 {[%emt 0:00:06]} Rd3 {[%emt 0:00:04]} 39. Rxe4 {[%emt 0:00:06]} Rxc3 {[%emt 0:00:01]} 40. Nf7+ {[%emt 0:00:40]} Kg7 {[%emt 0:00:02]} 41. Ne5 {[%emt 0:00:02]} Nd6 {[%emt 0:00:05]} 42. Rd4 {[%emt 0:00:58]} Nf5 {[%emt 0:00:07]} 43. Rc4 {[%emt 0:01:16]} Rxc4 {[%emt 0:00:04]} 44. Nxc4 {[%emt 0:00:02]} Nd4 {[%emt 0:00:02]} 45. Ne5 {[%emt 0:00:37]} Kf6 {[%emt 0:00:06]} 46. Nd7+ {[%emt 0:00:04]} Ke6 {[%emt 0:00:05]} 47. Nc5+ {[%emt 0:00:02]} Kd5 {[%emt 0:00:02]} 48. Nxa6 {[%emt 0:00:01]} Kc4 {[%emt 0:00:07]} 49. Nc7 {[%emt 0:00:06]} 1-0

[Event "European Online Club-ch-E 2021"]
[Site "Online"]
[Date "2021.03.27"]
[Round "7.19"]
[White "Koutlas, Nikolaos"]
[Black "Ince, Safiye Oyku"]
[Result "1-0"]
[ECO "B48"]
[WhiteElo "2078"]
[BlackElo "1995"]
[Annotator "NA"]
[PlyCount "49"]
[EventDate "2021.03.27"]
[EventType "team-tourn"]
[EventCountry "NET"]
[SourceTitle "playchess.com"]
[Source "ChessBase"]
[SourceQuality "1"]
[TimeControl "900+5"]

1. e4 {[%emt 0:00:00]} c5 {[%emt 0:00:05]} 2. Nf3 {[%emt 0:00:02]} e6 {[%emt 0:00:02]} 3. d4 {[%emt 0:00:02]} cxd4 {[%emt 0:00:04]} 4. Nxd4 {[%emt 0:00:00]} Nc6 {[%emt 0:00:03]} 5. Nc3 {[%emt 0:00:03]} Qc7 {[%emt 0:00:02]} 6. Be2 {[%emt 0:00:02]} Nf6 {[%emt 0:00:05]} 7. O-O {[%emt 0:00:06]} Be7 {[%emt 0:00:23]} 8. Be3 {[%emt 0:00:21]} O-O {[%emt 0:00:28]} 9. Kh1 {[%emt 0:00:25]} d6 {[%emt 0:00:22]} 10. Nb3 {[%emt 0:00:36]} Rd8 {[%emt 0:01:45]} 11. f4 {[%emt 0:00:32]} d5 {[%emt 0:01:32]} 12. e5 {[%emt 0:00:17]} Ne4 {[%emt 0:00:06]} 13. Qe1 {[%emt 0:05:07]} Bb4 {[%emt 0:05:35]} 14. Nb5 {[%emt 0:01:36]} Qb8 {[%emt 0:00:34]} 15. c3 {[%emt 0:00:20]} Be7 {[%emt 0:00:27]} 16. Bd3 {[%emt 0:01:01]} a6 {[%emt 0:00:25]} 17. N5d4 {[%emt 0:00:03]} Nxd4 {[%emt 0:02:00]} 18. Nxd4 {[%emt 0:00:04]} Nc5 {[%emt 0:00:15]} 19. Bc2 {[%emt 0:02:12]} f5 {[%emt 0:01:15]} 20. g4 {[%emt 0:02:26]} fxg4 {[%emt 0:00:29]} 21. Rg1 {[%emt 0:00:53]} h5 {[%emt 0:00:35]} 22. h3 {[%emt 0:00:08]} gxh3 {[%emt 0:00:03]} 23. Rxg7+ {[%emt 0:00:26]} Kxg7 {[%emt 0:00:03]} 24. Qg3+ {[%emt 0:00:02]} Kh8 {[%emt 0:00:07]} 25. Rg1 {[%emt 0:00:08]} 1-0

[Event "European Online Club-ch-E 2021"]
[Site "Online"]
[Date "2021.03.27"]
[Round "7.20"]
[White "Aydin, Gulenay"]
[Black "Zisiadis, Dimitrios"]
[Result "1-0"]
[ECO "B08"]
[WhiteElo "1975"]
[BlackElo "2042"]
[Annotator "NA"]
[PlyCount "33"]
[EventDate "2021.03.27"]
[EventType "team-tourn"]
[EventCountry "NET"]
[SourceTitle "playchess.com"]
[Source "ChessBase"]
[SourceQuality "1"]
[TimeControl "900+5"]

1. e4 {[%emt 0:00:00]} g6 {[%emt 0:00:15]} 2. d4 {[%emt 0:00:04]} Bg7 {[%emt 0:00:02]} 3. Nc3 {[%emt 0:00:02]} a6 {[%emt 0:00:06]} 4. Nf3 {[%emt 0:00:05]} d6 {[%emt 0:00:03]} 5. Be3 {[%emt 0:00:33]} Nf6 {[%emt 0:00:06]} 6. Bd3 {[%emt 0:00:17]} b5 {[%emt 0:00:02]} 7. Qd2 {[%emt 0:00:08]} Bb7 {[%emt 0:00:04]} 8. Bh6 {[%emt 0:00:54]} O-O {[%emt 0:03:32]} 9. h4 {[%emt 0:03:02]} b4 {[%emt 0:00:09]} 10. Nd5 {[%emt 0:00:17]} Nbd7 {[%emt 0:01:09]} 11. h5 {[%emt 0:01:37]} e5 {[%emt 0:04:12]} 12. Bxg7 {[%emt 0:02:10]} Kxg7 {[%emt 0:00:04]} 13. hxg6 {[%emt 0:00:01]} fxg6 {[%emt 0:00:02]} 14. Qh6+ {[%emt 0:00:07]} Kg8 {[%emt 0:00:02]} 15. Ng5 {[%emt 0:01:06]} Bxd5 {[%emt 0:00:25]} 16. Nxh7 {[%emt 0:01:33]} Rf7 {[%emt 0:00:41]} 17. Ng5 {[%emt 0:00:34]} 1-0

[Event "European Online Club-ch-E 2021"]
[Site "Online"]
[Date "2021.03.27"]
[Round "8.1"]
[White "Coursaget, Nicolas"]
[Black "Ozturk Orenli, Kubra"]
[Result "0-1"]
[ECO "D59"]
[WhiteElo "2192"]
[BlackElo "2330"]
[Annotator "NA"]
[PlyCount "70"]
[EventDate "2021.03.27"]
[EventType "team-tourn"]
[EventCountry "NET"]
[SourceTitle "playchess.com"]
[Source "ChessBase"]
[SourceQuality "1"]
[TimeControl "900+5"]

1. d4 {[%emt 0:00:00]} Nf6 {[%emt 0:00:08]} 2. Nf3 {[%emt 0:00:03]} e6 {[%emt 0:00:02]} 3. c4 {[%emt 0:00:02]} d5 {[%emt 0:00:02]} 4. Nc3 {[%emt 0:00:04]} Be7 {[%emt 0:00:05]} 5. Bg5 {[%emt 0:00:08]} Nbd7 {[%emt 0:00:25]} 6. e3 {[%emt 0:00:04]} h6 {[%emt 0:00:02]} 7. Bh4 {[%emt 0:00:03]} O-O {[%emt 0:00:12]} 8. Rc1 {[%emt 0:00:03]} c5 {[%emt 0:00:03]} 9. cxd5 {[%emt 0:00:06]} Nxd5 {[%emt 0:00:07]} 10. Bxe7 {[%emt 0:00:10]} Qxe7 {[%emt 0:00:03]} 11. Nxd5 {[%emt 0:00:03]} exd5 {[%emt 0:00:01]} 12. Be2 {[%emt 0:00:02]} b6 {[%emt 0:00:28]} 13. O-O {[%emt 0:00:04]} Bb7 {[%emt 0:00:21]} 14. Qa4 {[%emt 0:00:25]} Rfc8 {[%emt 0:01:28]} 15. Ba6 {[%emt 0:00:43]} Nf6 {[%emt 0:00:22]} 16. Qa3 {[%emt 0:01:15]} Ne4 {[%emt 0:00:13]} 17. Rfd1 {[%emt 0:00:19]} Rd8 {[%emt 0:00:52]} 18. b3 {[%emt 0:03:31]} Rac8 {[%emt 0:00:19]} 19. Bd3 {[%emt 0:00:36]} a6 {[%emt 0:00:58]} 20. Qb2 {[%emt 0:00:14]} Qf6 {[%emt 0:01:24]} 21. Qe2 {[%emt 0:01:56]} b5 {[%emt 0:00:19]} 22. Bb1 {[%emt 0:01:06]} c4 {[%emt 0:02:10]} 23. Bxe4 {[%emt 0:00:09]} dxe4 {[%emt 0:00:02]} 24. Ne5 {[%emt 0:00:11]} cxb3 {[%emt 0:00:04]} 25. axb3 {[%emt 0:00:33]} Qe6 {[%emt 0:00:04]} 26. Qb2 {[%emt 0:00:55]} Kh7 {[%emt 0:01:06]} 27. h3 {[%emt 0:00:44]} Bd5 {[%emt 0:00:48]} 28. b4 {[%emt 0:00:23]} h5 {[%emt 0:00:26]} 29. Qb1 {[%emt 0:01:18]} g6 {[%emt 0:00:24]} 30. Rxc8 {[%emt 0:00:40]} Rxc8 {[%emt 0:00:04]} 31. Rc1 {[%emt 0:00:28]} f6 {[%emt 0:00:14]} 32. Rxc8 {[%emt 0:01:04]} Qxc8 {[%emt 0:00:03]} 33. f4 {[%emt 0:00:17]} fxe5 {[%emt 0:00:07]} 34. fxe5 {[%emt 0:00:02]} Qc3 {[%emt 0:00:07]} 35. Kf2 {[%emt 0:00:04]} Qd2+ {[%emt 0:00:02]} 0-1

[Event "European Online Club-ch-E 2021"]
[Site "Online"]
[Date "2021.03.27"]
[Round "8.2"]
[White "Caglar, Sila"]
[Black "Lejeune, Gael"]
[Result "1-0"]
[ECO "B01"]
[WhiteElo "2250"]
[BlackElo "2070"]
[Annotator "NA"]
[PlyCount "79"]
[EventDate "2021.03.27"]
[EventType "team-tourn"]
[EventCountry "NET"]
[SourceTitle "playchess.com"]
[Source "ChessBase"]
[SourceQuality "1"]
[TimeControl "900+5"]

1. e4 {[%emt 0:00:00]} d5 {[%emt 0:00:28]} 2. exd5 {[%emt 0:00:27]} Qxd5 {[%emt 0:00:00]} 3. Nc3 {[%emt 0:00:07]} Qd8 {[%emt 0:00:02]} 4. d4 {[%emt 0:00:03]} Nf6 {[%emt 0:00:02]} 5. Nf3 {[%emt 0:00:09]} Bg4 {[%emt 0:00:03]} 6. h3 {[%emt 0:00:13]} Bh5 {[%emt 0:00:03]} 7. Be2 {[%emt 0:00:51]} e6 {[%emt 0:00:05]} 8. O-O {[%emt 0:00:04]} c6 {[%emt 0:00:04]} 9. Bg5 {[%emt 0:00:09]} Be7 {[%emt 0:00:09]} 10. Re1 {[%emt 0:00:02]} O-O {[%emt 0:00:04]} 11. Qd2 {[%emt 0:00:19]} Nbd7 {[%emt 0:00:05]} 12. Rad1 {[%emt 0:00:14]} Re8 {[%emt 0:00:16]} 13. Ne5 {[%emt 0:00:31]} Nxe5 {[%emt 0:00:21]} 14. dxe5 {[%emt 0:00:17]} Qxd2 {[%emt 0:00:00]} 15. Rxd2 {[%emt 0:00:04]} Bxe2 {[%emt 0:00:03]} 16. Rdxe2 {[%emt 0:00:51]} Nd5 {[%emt 0:00:10]} 17. Bxe7 {[%emt 0:00:06]} Rxe7 {[%emt 0:00:00]} 18. Ne4 {[%emt 0:00:03]} b5 {[%emt 0:02:53]} 19. Nd6 {[%emt 0:00:44]} a5 {[%emt 0:00:26]} 20. g3 {[%emt 0:00:15]} g5 {[%emt 0:00:07]} 21. Rc1 {[%emt 0:00:36]} b4 {[%emt 0:00:20]} 22. c4 {[%emt 0:00:21]} bxc3 {[%emt 0:00:02]} 23. bxc3 {[%emt 0:00:04]} Rb8 {[%emt 0:00:04]} 24. Kg2 {[%emt 0:00:26]} h6 {[%emt 0:00:07]} 25. c4 {[%emt 0:00:11]} Nb4 {[%emt 0:00:18]} 26. Rc3 {[%emt 0:00:06]} c5 {[%emt 0:01:03]} 27. f4 {[%emt 0:00:13]} gxf4 {[%emt 0:00:29]} 28. gxf4 {[%emt 0:00:02]} Nc6 {[%emt 0:00:21]} 29. Ne4 {[%emt 0:00:22]} Nd4 {[%emt 0:00:47]} 30. Rd2 {[%emt 0:00:20]} Rc7 {[%emt 0:00:08]} 31. Ra3 {[%emt 0:00:17]} Rb4 {[%emt 0:00:22]} 32. Rxa5 {[%emt 0:00:27]} f5 {[%emt 0:02:01]} 33. exf6 {[%emt 0:00:31]} Rxc4 {[%emt 0:00:13]} 34. Ra8+ {[%emt 0:00:13]} Kh7 {[%emt 0:00:05]} 35. Nd6 {[%emt 0:00:12]} Kg6 {[%emt 0:04:57]} 36. Nxc4 {[%emt 0:00:19]} Kxf6 {[%emt 0:00:02]} 37. a4 {[%emt 0:00:14]} Kf5 {[%emt 0:00:05]} 38. Rg8 {[%emt 0:00:58]} Kxf4 {[%emt 0:00:11]} 39. Rg4+ {[%emt 0:00:20]} Kf5 {[%emt 0:00:02]} 40. Rf2+ {[%emt 0:00:03]} 1-0

[Event "European Online Club-ch-E 2021"]
[Site "Online"]
[Date "2021.03.27"]
[Round "8.3"]
[White "Thereze, Ludovic"]
[Black "Kocyigit, Buse Naz"]
[Result "0-1"]
[ECO "D91"]
[WhiteElo "2007"]
[BlackElo "2143"]
[Annotator "NA"]
[PlyCount "114"]
[EventDate "2021.03.27"]
[EventType "team-tourn"]
[EventCountry "NET"]
[SourceTitle "playchess.com"]
[Source "ChessBase"]
[SourceQuality "1"]
[TimeControl "900+5"]

1. d4 {[%emt 0:00:00]} Nf6 {[%emt 0:00:04]} 2. c4 {[%emt 0:00:03]} g6 {[%emt 0:00:01]} 3. Nc3 {[%emt 0:00:08]} Bg7 {[%emt 0:00:02]} 4. Nf3 {[%emt 0:00:02]} O-O {[%emt 0:00:02]} 5. Bg5 {[%emt 0:00:03]} d5 {[%emt 0:00:18]} 6. cxd5 {[%emt 0:01:10]} Nxd5 {[%emt 0:00:34]} 7. e4 {[%emt 0:00:03]} Nxc3 {[%emt 0:00:42]} 8. bxc3 {[%emt 0:00:03]} c5 {[%emt 0:00:14]} 9. Be2 {[%emt 0:00:36]} Nc6 {[%emt 0:01:59]} 10. O-O {[%emt 0:01:50]} cxd4 {[%emt 0:01:20]} 11. cxd4 {[%emt 0:00:07]} Nxd4 {[%emt 0:01:55]} 12. Nxd4 {[%emt 0:00:04]} Bxd4 {[%emt 0:00:34]} 13. Rb1 {[%emt 0:01:15]} Qd6 {[%emt 0:02:00]} 14. Kh1 {[%emt 0:00:42]} Rd8 {[%emt 0:00:56]} 15. f4 {[%emt 0:01:45]} b6 {[%emt 0:00:50]} 16. e5 {[%emt 0:01:13]} Qc7 {[%emt 0:01:03]} 17. Qb3 {[%emt 0:00:36]} Be6 {[%emt 0:00:22]} 18. Qa4 {[%emt 0:01:22]} Rac8 {[%emt 0:00:44]} 19. Rfd1 {[%emt 0:01:05]} Bc5 {[%emt 0:00:50]} 20. Bf3 {[%emt 0:00:41]} Kg7 {[%emt 0:00:31]} 21. h3 {[%emt 0:01:34]} Rxd1+ {[%emt 0:00:13]} 22. Rxd1 {[%emt 0:00:03]} Rd8 {[%emt 0:00:31]} 23. Rxd8 {[%emt 0:00:23]} Qxd8 {[%emt 0:00:02]} 24. Kh2 {[%emt 0:01:04]} Qd4 {[%emt 0:00:32]} 25. Qxd4 {[%emt 0:00:21]} Bxd4 {[%emt 0:00:03]} 26. Bxe7 {[%emt 0:00:02]} Bxa2 {[%emt 0:00:04]} 27. g4 {[%emt 0:00:18]} b5 {[%emt 0:00:25]} 28. Bc6 {[%emt 0:00:06]} Bc4 {[%emt 0:00:10]} 29. Bd6 {[%emt 0:00:09]} a5 {[%emt 0:00:07]} 30. f5 {[%emt 0:00:02]} gxf5 {[%emt 0:00:10]} 31. gxf5 {[%emt 0:00:01]} b4 {[%emt 0:00:03]} 32. f6+ {[%emt 0:00:29]} Kg8 {[%emt 0:00:05]} 33. Be4 {[%emt 0:00:02]} b3 {[%emt 0:00:03]} 34. Kg3 {[%emt 0:00:06]} b2 {[%emt 0:00:10]} 35. Bb1 {[%emt 0:00:03]} a4 {[%emt 0:00:06]} 36. Kf4 {[%emt 0:00:02]} Bf2 {[%emt 0:00:05]} 37. Ke4 {[%emt 0:00:07]} Be6 {[%emt 0:00:04]} 38. Ba3 {[%emt 0:00:04]} Bxh3 {[%emt 0:00:04]} 39. Bxb2 {[%emt 0:00:03]} Be6 {[%emt 0:00:01]} 40. Ba3 {[%emt 0:00:18]} h5 {[%emt 0:00:07]} 41. Bd3 {[%emt 0:00:07]} h4 {[%emt 0:00:04]} 42. Kf4 {[%emt 0:00:05]} h3 {[%emt 0:00:06]} 43. Be4 {[%emt 0:00:05]} Bd4 {[%emt 0:00:07]} 44. Bd6 {[%emt 0:00:13]} Bb2 {[%emt 0:00:04]} 45. Kg3 {[%emt 0:00:04]} a3 {[%emt 0:00:02]} 46. Bb1 {[%emt 0:00:05]} a2 {[%emt 0:00:11]} 47. Bxa2 {[%emt 0:00:02]} Bxa2 {[%emt 0:00:02]} 48. Kxh3 {[%emt 0:00:02]} Kh7 {[%emt 0:00:01]} 49. Kg4 {[%emt 0:00:02]} Kg6 {[%emt 0:00:02]} 50. Kf4 {[%emt 0:00:01]} Bb1 {[%emt 0:00:11]} 51. Bc5 {[%emt 0:00:13]} Bc1+ {[%emt 0:00:03]} 52. Kg4 {[%emt 0:00:05]} Bc2 {[%emt 0:00:06]} 53. Bd6 {[%emt 0:00:07]} Bd1+ {[%emt 0:00:06]} 54. Kg3 {[%emt 0:00:07]} Kf5 {[%emt 0:00:03]} 55. Kf2 {[%emt 0:00:04]} Bb3 {[%emt 0:00:10]} 56. Kf3 {[%emt 0:00:05]} Bb2 {[%emt 0:00:03]} 57. Ke3 {[%emt 0:00:07]} Bxe5 {[%emt 0:00:03]} 0-1

[Event "European Online Club-ch-E 2021"]
[Site "Online"]
[Date "2021.03.27"]
[Round "8.4"]
[White "Anacoglu, Cisel"]
[Black "Marchadour, Emilie"]
[Result "1-0"]
[ECO "B47"]
[WhiteElo "1924"]
[BlackElo "2006"]
[Annotator "NA"]
[PlyCount "33"]
[EventDate "2021.03.27"]
[EventType "team-tourn"]
[EventCountry "NET"]
[SourceTitle "playchess.com"]
[Source "ChessBase"]
[SourceQuality "1"]
[TimeControl "900+5"]

1. e4 {[%emt 0:00:00]} c5 {[%emt 0:00:04]} 2. Nf3 {[%emt 0:00:04]} e6 {[%emt 0:00:02]} 3. d4 {[%emt 0:00:01]} cxd4 {[%emt 0:00:01]} 4. Nxd4 {[%emt 0:00:02]} Nc6 {[%emt 0:00:01]} 5. Nc3 {[%emt 0:00:01]} Qc7 {[%emt 0:00:02]} 6. g3 {[%emt 0:00:02]} a6 {[%emt 0:00:03]} 7. Bg2 {[%emt 0:00:02]} Nf6 {[%emt 0:00:18]} 8. O-O {[%emt 0:00:03]} Nxd4 {[%emt 0:00:07]} 9. Qxd4 {[%emt 0:00:02]} Bc5 {[%emt 0:00:01]} 10. Bf4 {[%emt 0:00:02]} d6 {[%emt 0:01:37]} 11. Qd2 {[%emt 0:00:03]} O-O {[%emt 0:00:05]} 12. Rad1 {[%emt 0:00:25]} e5 {[%emt 0:00:26]} 13. Bg5 {[%emt 0:00:06]} Be6 {[%emt 0:00:04]} 14. Bxf6 {[%emt 0:00:41]} gxf6 {[%emt 0:00:03]} 15. Qh6 {[%emt 0:00:04]} Qe7 {[%emt 0:00:19]} 16. Bh3 {[%emt 0:02:44]} Bxh3 {[%emt 0:01:05]} 17. Nd5 {[%emt 0:00:39]} 1-0